bitfinex/quotes_BTCUSD_20241203
["timestamp","ask_amount","ask_price","bid_price","bid_amount"]
[1733218151931,0.05370183,95366.0,95359.0,0.00185594]
[1733218152181,0.05370183,95366.0,95360.0,0.209731]
[1733218152401,0.04970183,95366.0,95360.0,0.209731]
[1733218152656,0.04970183,95366.0,95361.0,0.10283146]
[1733218152888,0.06270183,95366.0,95361.0,0.80283146]
[1733218153331,0.05870183,95366.0,95361.0,0.80283146]
[1733218153568,0.06770183,95366.0,95361.0,0.80283146]
[1733218153794,0.05870183,95366.0,95361.0,0.80283146]
[1733218153999,0.05726328,95366.0,95361.0,0.7]
[1733218154225,0.06126328,95366.0,95361.0,0.7]
[1733218154430,0.05226328,95366.0,95361.0,0.7]
[1733218154629,0.06026328,95366.0,95361.0,0.7]
[1733218154831,0.06026328,95366.0,95361.0,0.80283146]
[1733218154986,0.05626328,95366.0,95361.0,0.10283146]
[1733218155183,0.05626328,95366.0,95358.0,0.00185595]
[1733218155387,0.05626328,95366.0,95359.0,0.209733]
[1733218155662,0.05626328,95366.0,95359.0,0.21158896]
[1733218155861,0.05726328,95366.0,95359.0,0.21158896]
[1733218156065,0.05726328,95366.0,95359.0,0.209733]
[1733218156266,0.05726328,95366.0,95361.0,0.209729]
[1733218156476,0.04826328,95366.0,95361.0,0.209729]
[1733218156938,0.05226328,95366.0,95361.0,0.209729]
[1733218157116,0.05226328,95366.0,95360.0,0.05485576]
[1733218157331,0.05226328,95366.0,95360.0,0.00185593]
[1733218157541,0.05226328,95366.0,95359.0,0.21158894]
[1733218157542,0.04826328,95366.0,95359.0,0.21158894]
[1733218157788,0.04926328,95366.0,95359.0,0.00185594]
[1733218157925,0.05326328,95366.0,95359.0,0.00185594]
[1733218158119,0.04926328,95366.0,95359.0,0.00185594]
[1733218158531,0.05326328,95366.0,95359.0,0.00185594]
[1733218159617,0.04926328,95366.0,95359.0,0.00185594]
[1733218160032,0.05326328,95366.0,95359.0,0.00185594]
[1733218161621,0.05326328,95366.0,95360.0,0.209731]
[1733218162252,0.05326328,95366.0,95361.0,0.05214765]
[1733218162421,0.05226328,95366.0,95361.0,0.05214765]
[1733218162625,0.04998988,95366.0,95362.0,0.209727]
[1733218162852,0.00978814,95365.0,95362.0,0.209727]
[1733218163087,0.00978814,95364.0,95360.0,0.209731]
[1733218163319,0.00978814,95363.0,95360.0,0.21158692]
[1733218163436,0.00978814,95362.0,95360.0,0.00185592]
[1733218163631,0.0757,95360.0,95358.0,0.00185595]
[1733218163845,0.00978814,95359.0,95357.0,0.00017576]
[1733218164046,0.00978814,95358.0,95357.0,0.00017576]
[1733218164257,0.00979032,95358.0,95357.0,0.00017576]
[1733218164665,0.00979032,95358.0,95357.0,0.70017576]
[1733218165302,0.00979032,95358.0,95357.0,0.80300722]
[1733218165533,0.00979032,95358.0,95357.0,0.70017576]
[1733218166152,0.00979404,95358.0,95357.0,0.70017576]
[1733218166367,0.00979404,95358.0,95357.0,0.70117576]
[1733218166582,0.0757,95365.0,95357.0,0.70117576]
[1733218166583,0.0757,95365.0,95361.0,2.49020596]
[1733218166999,0.209722,95364.0,95361.0,2.49020596]
[1733218167204,0.09137047,95365.0,95361.0,2.49020596]
[1733218167411,0.209722,95364.0,95361.0,2.49020596]
[1733218167637,0.09137047,95365.0,95361.0,2.49020596]
[1733218167844,0.0767,95365.0,95361.0,2.49020596]
[1733218168049,0.209722,95364.0,95361.0,2.49020596]
[1733218168449,0.09137047,95365.0,95361.0,2.49020596]
[1733218168657,0.001,95364.0,95361.0,2.49020596]
[1733218169092,0.209724,95363.0,95361.0,2.49020596]
[1733218170676,0.002,95363.0,95361.0,2.49020596]
[1733218171091,0.209727,95362.0,95361.0,2.49020596]
[1733218171719,0.002,95363.0,95361.0,2.49020596]
[1733218172164,0.22540166,95363.0,95361.0,2.49020596]
[1733218172384,0.01767766,95362.0,95361.0,2.49020596]
[1733218172875,0.01767766,95362.0,95361.0,2.46620596]
[1733218173121,0.01567766,95362.0,95361.0,2.46620596]
[1733218173609,0.01767766,95362.0,95361.0,2.46620596]
[1733218175472,0.01767766,95362.0,95361.0,2.47407603]
[1733218176639,0.01767766,95362.0,95361.0,2.47407609]
[1733218177096,0.01767766,95362.0,95361.0,2.57690755]
[1733218178069,0.01767766,95362.0,95361.0,2.47407609]
[1733218178773,0.02749082,95362.0,95361.0,2.47407609]
[1733218179227,0.02749082,95362.0,95361.0,3.17407609]
[1733218180702,0.02749082,95362.0,95361.0,2.47407609]
[1733218185129,0.02749082,95362.0,95361.0,2.47493909]
[1733218186073,0.002,95362.0,95361.0,2.46706896]
[1733218186282,0.02751336,95362.0,95361.0,2.46706896]
[1733218186708,0.01181283,95362.0,95361.0,2.46706896]
[1733218187303,0.00981283,95362.0,95361.0,2.65537403]
[1733218187521,0.00981283,95362.0,95361.0,2.46706896]
[1733218187758,0.01081283,95362.0,95361.0,2.65567968]
[1733218188234,0.01081283,95362.0,95361.0,2.46706896]
[1733218189089,0.00981283,95362.0,95361.0,2.46806896]
[1733218189291,0.00981283,95362.0,95361.0,2.70383236]
[1733218190368,0.00981283,95362.0,95361.0,2.46806896]
[1733218194545,0.00981283,95362.0,95361.0,3.16806896]
[1733218196804,0.00981283,95362.0,95361.0,3.35680321]
[1733218197019,0.00981283,95362.0,95361.0,3.16806896]
[1733218197252,0.00981283,95362.0,95361.0,2.46806896]
[1733218197673,0.001726,95362.0,95361.0,2.46806896]
[1733218198114,0.01153084,95362.0,95361.0,2.46806896]
[1733218199301,0.01153084,95362.0,95361.0,2.70398186]
[1733218200129,0.01153084,95362.0,95361.0,2.80681332]
[1733218200549,0.01153084,95362.0,95361.0,2.70398186]
[1733218201415,0.01153084,95362.0,95361.0,2.46806896]
[1733218201621,0.01153084,95362.0,95361.0,2.70398186]
[1733218201822,0.01153084,95362.0,95361.0,3.40398186]
[1733218202210,0.01153084,95362.0,95361.0,3.16806896]
[1733218202418,0.01153084,95362.0,95361.0,2.46806896]
[1733218203028,0.01153084,95362.0,95361.0,2.57090042]
[1733218203227,0.01153084,95362.0,95361.0,2.46806896]
[1733218203460,0.01153084,95362.0,95361.0,3.16806896]
[1733218204758,0.01153084,95362.0,95361.0,3.35677844]
[1733218204973,0.01153084,95362.0,95361.0,3.16806896]
[1733218205659,0.01153084,95362.0,95361.0,3.35677844]
[1733218206074,0.01153084,95362.0,95361.0,3.27090042]
[1733218206930,0.01153084,95362.0,95361.0,3.35677844]
[1733218207357,0.01153084,95362.0,95361.0,3.16806896]
[1733218207786,0.01153084,95362.0,95361.0,3.35677512]
[1733218207996,0.01153084,95362.0,95361.0,3.16806896]
[1733218208466,0.01153084,95362.0,95361.0,2.46806896]
[1733218212088,0.01153084,95362.0,95361.0,2.46706896]
[1733218212544,0.01353084,95362.0,95361.0,2.46706896]
[1733218214590,0.003726,95362.0,95361.0,2.46706896]
[1733218214797,0.01353906,95362.0,95361.0,2.46706896]
[1733218219026,0.41319919,95362.0,95361.0,2.46706896]
[1733218219234,0.47719203,95362.0,95361.0,2.46706896]
[1733218219448,0.47719203,95362.0,95361.0,2.44344127]
[1733218220097,0.4614904,95362.0,95361.0,2.44344127]
[1733218220310,0.4594904,95362.0,95361.0,2.44344127]
[1733218220750,0.4644904,95362.0,95361.0,2.44344127]
[1733218220966,0.4644904,95362.0,95361.0,2.43679657]
[1733218221490,0.56920299,95362.0,95361.0,2.43351827]
[1733218221579,0.55566393,95362.0,95361.0,2.4313411]
[1733218222893,0.55387272,95362.0,95361.0,2.4313411]
[1733218223361,0.54987272,95362.0,95361.0,2.4313411]
[1733218223795,0.45316013,95362.0,95361.0,2.4313411]
[1733218224042,0.44716013,95362.0,95361.0,2.4313411]
[1733218224526,0.45616013,95362.0,95361.0,2.4313411]
[1733218224976,0.55787272,95362.0,95361.0,2.4313411]
[1733218225432,0.56187272,95362.0,95361.0,2.4313411]
[1733218229669,0.56366393,95362.0,95361.0,2.4313411]
[1733218231427,0.56538993,95362.0,95361.0,2.4313411]
[1733218233019,0.43849872,95362.0,95361.0,2.4313411]
[1733218233754,0.44828336,95362.0,95361.0,2.4313411]
[1733218234713,0.34357077,95362.0,95361.0,2.4313411]
[1733218236391,0.02451064,95362.0,95361.0,2.4313411]
[1733218237380,0.014726,95362.0,95361.0,2.4313411]
[1733218237619,0.02451556,95362.0,95361.0,2.4313411]
[1733218238616,0.02451946,95362.0,95361.0,2.4313411]
[1733218240506,0.02451946,95362.0,95361.0,2.5099411]
[1733218242795,0.17451946,95362.0,95361.0,2.5099411]
[1733218243016,0.17452383,95362.0,95361.0,2.5099411]
[1733218243739,0.02452383,95362.0,95361.0,2.5099411]
[1733218245134,0.02452383,95362.0,95361.0,2.61277256]
[1733218245353,0.02452383,95362.0,95361.0,2.66057256]
[1733218245571,0.02452708,95362.0,95361.0,2.66057256]
[1733218245807,0.02452708,95362.0,95361.0,2.5577411]
[1733218246698,0.02452708,95362.0,95361.0,3.2577411]
[1733218248177,0.02452708,95362.0,95361.0,3.2099411]
[1733218248598,0.014726,95362.0,95361.0,2.5099411]
[1733218248819,0.02453069,95362.0,95361.0,2.5099411]
[1733218251828,0.0263219,95362.0,95361.0,2.4313411]
[1733218252082,0.04200928,95362.0,95361.0,2.4313411]
[1733218252325,0.04200928,95362.0,95361.0,2.40771429]
[1733218252805,0.01651721,95362.0,95361.0,2.40771429]
[1733218253022,0.02631934,95362.0,95361.0,2.40771429]
[1733218253447,0.02452813,95362.0,95361.0,2.40771429]
[1733218256622,0.34358826,95362.0,95361.0,2.40771429]
[1733218256826,0.34537947,95362.0,95361.0,2.40771429]
[1733218259724,0.34537885,95362.0,95361.0,2.40771429]
[1733218263569,0.45009144,95362.0,95361.0,2.40771429]
[1733218263786,0.77249144,95362.0,95361.0,2.32382229]
[1733218264037,0.77249144,95362.0,95361.0,2.30284929]
[1733218264251,0.9135816,95362.0,95361.0,2.30284929]
[1733218264476,0.96061166,95362.0,95361.0,2.30284929]
[1733218264695,0.95661166,95362.0,95361.0,2.30284929]
[1733218264917,0.95661166,95362.0,95361.0,2.2700272]
[1733218264918,0.76849144,95362.0,95361.0,2.2700272]
[1733218265173,0.77649144,95362.0,95361.0,2.2500542]
[1733218265616,0.76849144,95362.0,95361.0,2.2071082]
[1733218265835,0.77649144,95362.0,95361.0,2.2081082]
[1733218266526,0.90851418,95362.0,95361.0,2.17693834]
[1733218266782,0.91572297,95362.0,95361.0,2.17693834]
[1733218266997,0.90672297,95362.0,95361.0,2.17693834]
[1733218267426,0.91572297,95362.0,95361.0,2.17693834]
[1733218267639,0.77470023,95362.0,95361.0,2.17693834]
[1733218267879,0.77649144,95362.0,95361.0,2.17693834]
[1733218271474,0.69999144,95362.0,95361.0,2.17693834]
[1733218274700,0.69999144,95362.0,95361.0,2.15596534]
[1733218276571,0.69999144,95362.0,95361.0,2.12314293]
[1733218283026,0.69999144,95362.0,95361.0,2.11857283]
[1733218284845,0.70977373,95362.0,95361.0,2.11857283]
[1733218285065,0.69997222,95362.0,95361.0,2.11857283]
[1733218285742,0.30228101,95362.0,95361.0,2.11857283]
[1733218285744,0.30228101,95362.0,95361.0,2.19907283]
[1733218285967,0.19756842,95362.0,95361.0,2.19907283]
[1733218286666,0.01150829,95362.0,95361.0,2.19807283]
[1733218287132,0.02650829,95362.0,95361.0,2.19807283]
[1733218287357,0.01750829,95362.0,95361.0,2.19807283]
[1733218287580,0.01850829,95362.0,95361.0,2.24567283]
[1733218288024,0.02150829,95362.0,95361.0,2.24567283]
[1733218295827,0.011726,95362.0,95361.0,2.24567283]
[1733218306098,0.011726,95362.0,95361.0,2.24556493]
[1733218307390,0.011726,95362.0,95361.0,2.24797211]
[1733218309766,0.011726,95362.0,95361.0,2.94797211]
[1733218310588,0.011726,95362.0,95361.0,2.94465211]
[1733218312551,0.02150464,95362.0,95361.0,3.15438111]
[1733218312809,0.011726,95362.0,95361.0,3.25721257]
[1733218313309,0.011726,95362.0,95361.0,3.41406128]
[1733218313310,0.008726,95362.0,95361.0,3.41406128]
[1733218313539,0.0017266,95366.0,95365.0,0.03093987]
[1733218313776,0.0017266,95366.0,95365.0,1.17182805]
[1733218314009,0.0017266,95366.0,95365.0,1.24949605]
[1733218314463,0.0017266,95366.0,95365.0,1.16997246]
[1733218315648,0.001727,95371.0,95370.0,0.36414887]
[1733218315888,0.001727,95371.0,95370.0,1.16886146]
[1733218317745,0.002727,95371.0,95370.0,1.17286146]
[1733218318423,0.003727,95371.0,95370.0,1.17786146]
[1733218318872,0.003727,95371.0,95370.0,1.2799103]
[1733218320354,0.003727,95371.0,95370.0,1.17707884]
[1733218323721,0.003727,95371.0,95370.0,0.47707884]
[1733218326720,0.003727,95371.0,95370.0,1.17707884]
[1733218327163,0.003727,95371.0,95370.0,0.47707884]
[1733218330000,0.003727,95371.0,95370.0,1.17707884]
[1733218331507,0.003727,95371.0,95370.0,1.36510036]
[1733218332146,0.003727,95371.0,95370.0,1.41210575]
[1733218332374,0.003727,95371.0,95370.0,1.17707884]
[1733218334160,0.003727,95371.0,95370.0,1.41206147]
[1733218334389,0.003727,95371.0,95370.0,1.41292467]
[1733218335028,0.003727,95371.0,95370.0,1.17794204]
[1733218335461,0.003727,95371.0,95370.0,1.41292646]
[1733218336144,0.003727,95371.0,95370.0,1.26575792]
[1733218336356,0.003727,95371.0,95370.0,1.0307735]
[1733218336568,0.003727,95371.0,95370.0,1.13765104]
[1733218339093,0.00978696,95398.0,95381.0,0.209685]
[1733218339321,0.00978696,95402.0,95381.0,1.09079759]
[1733218339809,0.209637,95403.0,95381.0,1.09079759]
[1733218340038,0.0098009,95402.0,95381.0,1.09079759]
[1733218340488,0.0098009,95402.0,95381.0,1.16392854]
[1733218340707,0.0098009,95406.0,95381.0,1.26676]
[1733218340925,0.0098009,95405.0,95381.0,1.26676]
[1733218341143,0.0098009,95404.0,95381.0,1.26876]
[1733218341360,0.0098009,95403.0,95381.0,1.26876]
[1733218341599,0.209628,95407.0,95381.0,1.26876]
[1733218341600,0.0098009,95402.0,95381.0,1.26876]
[1733218341831,0.0098009,95401.0,95381.0,1.26876]
[1733218341995,0.0098009,95409.0,95381.0,1.26876]
[1733218342237,0.0098009,95408.0,95381.0,1.26876]
[1733218342447,0.0098009,95407.0,95381.0,1.16592854]
[1733218342662,0.0098009,95406.0,95381.0,1.16592854]
[1733218342857,0.0098009,95405.0,95381.0,1.16592854]
[1733218343091,0.0098009,95404.0,95381.0,1.16592854]
[1733218343210,0.0098009,95403.0,95381.0,1.16592854]
[1733218343492,0.209622,95410.0,95381.0,1.16592854]
[1733218343493,0.0098009,95402.0,95381.0,1.16592854]
[1733218343713,0.0098009,95401.0,95381.0,1.16592854]
[1733218343948,0.0098009,95400.0,95381.0,1.16592854]
[1733218344178,0.0098009,95399.0,95381.0,1.16592854]
[1733218344388,0.0098009,95398.0,95381.0,1.16592854]
[1733218344600,0.0098009,95406.0,95381.0,1.16592854]
[1733218344809,0.209629,95407.0,95381.0,1.16592854]
[1733218344810,0.0098009,95405.0,95381.0,1.16592854]
[1733218345007,0.0098009,95404.0,95381.0,1.16592854]
[1733218345217,0.0098009,95403.0,95381.0,1.16592854]
[1733218345428,0.0098009,95402.0,95381.0,1.16592854]
[1733218345637,0.2113464,95411.0,95381.0,1.16592854]
[1733218345638,0.0098009,95401.0,95381.0,1.16592854]
[1733218345863,0.0098009,95401.0,95381.0,1.51592854]
[1733218346081,0.0017274,95411.0,95381.0,1.51592854]
[1733218346082,0.0098009,95410.0,95381.0,1.51592854]
[1733218346306,0.0017274,95411.0,95381.0,1.51592854]
[1733218346307,0.0098009,95409.0,95381.0,1.51592854]
[1733218346536,0.0098009,95408.0,95407.0,0.209628]
[1733218346774,0.0098009,95410.0,95408.0,0.0771]
[1733218346998,0.0017274,95411.0,95408.0,0.0771]
[1733218346999,0.0115283,95411.0,95409.0,0.10656751]
[1733218347263,0.0017274,95411.0,95409.0,0.31619051]
[1733218347705,0.00178903,95411.0,95410.0,0.0020921]
[1733218347925,0.00178903,95411.0,95410.0,0.10865955]
[1733218348139,0.00478903,95411.0,95410.0,0.10865955]
[1733218348606,0.00478903,95411.0,95410.0,0.10680469]
[1733218348809,0.00478903,95411.0,95410.0,0.80680469]
[1733218349270,0.00178903,95411.0,95410.0,0.80680469]
[1733218349483,0.00278903,95411.0,95410.0,0.80680469]
[1733218350177,0.00378903,95411.0,95410.0,0.80680469]
[1733218353142,0.00351311,95411.0,95410.0,0.80680469]
[1733218353818,0.21313211,95411.0,95410.0,0.7020921]
[1733218356259,0.21313211,95411.0,95410.0,0.0020921]
[1733218356927,0.20813211,95411.0,95410.0,0.0020921]
[1733218358533,0.20985831,95411.0,95410.0,0.0020921]
[1733218358742,0.20985831,95411.0,95410.0,0.7020921]
[1733218358963,0.0017262,95411.0,95410.0,0.7020921]
[1733218359415,0.0017262,95411.0,95410.0,0.79110582]
[1733218360275,0.0017262,95411.0,95410.0,0.7020921]
[1733218361163,0.0017262,95411.0,95410.0,0.0020921]
[1733218362506,0.0017262,95411.0,95402.0,0.00185506]
[1733218362507,0.20795097,95410.0,95402.0,0.00185506]
[1733218362769,0.20795097,95410.0,95404.0,0.7]
[1733218364606,0.0017262,95411.0,95404.0,0.7]
[1733218364607,0.209623,95409.0,95404.0,0.7]
[1733218364829,0.209623,95409.0,95404.0,0.001]
[1733218365307,0.209632,95405.0,95404.0,0.001]
[1733218365518,0.21942492,95405.0,95404.0,0.001]
[1733218366202,0.21942492,95405.0,95404.0,0.00044849]
[1733218366904,0.21942492,95405.0,95401.0,0.00041152]
[1733218367133,0.21942792,95404.0,95401.0,0.00041152]
[1733218367354,0.209639,95402.0,95401.0,0.00041152]
[1733218367573,0.21943192,95402.0,95401.0,0.00041152]
[1733218368278,0.209672,95387.0,95380.0,0.2351572]
[1733218368508,0.419282,95401.0,95375.0,0.209698]
[1733218368509,0.20968,95383.0,95377.0,0.041976]
[1733218368730,0.20968,95383.0,95375.0,0.0819]
[1733218369240,0.20968,95383.0,95376.0,0.041977]
[1733218370325,0.20968,95383.0,95371.0,0.1881606]
[1733218370546,0.20968,95383.0,95370.0,0.0008632]
[1733218370547,0.20968,95383.0,95372.0,0.7]
[1733218370772,0.21947424,95383.0,95372.0,0.7]
[1733218371690,0.21947424,95383.0,95382.0,0.0028631]
[1733218371907,0.21947424,95383.0,95382.0,0.0058631]
[1733218372145,0.21947424,95383.0,95382.0,0.0038631]
[1733218372376,0.21947424,95383.0,95382.0,0.0028631]
[1733218374075,0.21947424,95383.0,95382.0,0.0058631]
[1733218374301,0.20968,95383.0,95382.0,0.0058631]
[1733218376943,0.28528,95383.0,95382.0,0.0058631]
[1733218377412,0.28528,95383.0,95382.0,0.0028631]
[1733218377642,0.48528,95383.0,95382.0,0.0008631]
[1733218377856,0.48928,95383.0,95382.0,0.0008631]
[1733218378341,0.59399259,95383.0,95382.0,0.0008631]
[1733218378611,0.58999259,95383.0,95382.0,0.0008631]
[1733218379116,0.7971838,95383.0,95382.0,0.0018631]
[1733218379345,0.7901838,95383.0,95382.0,0.0008631]
[1733218380070,0.7931838,95383.0,95382.0,0.0008631]
[1733218380580,0.7901838,95383.0,95382.0,0.0008631]
[1733218380886,0.7991838,95383.0,95382.0,0.0018631]
[1733218381401,0.8041838,95383.0,95382.0,0.0018631]
[1733218383854,0.8041838,95383.0,95370.0,0.0008632]
[1733218383855,0.2,95371.0,95370.0,0.0008632]
[1733218384085,0.78891959,95371.0,95370.0,0.0008632]
[1733218384985,0.359727,95362.0,95361.0,2.11414493]
[1733218385195,0.46443959,95362.0,95361.0,2.11420656]
[1733218386067,0.54063959,95362.0,95361.0,2.11420656]
[1733218387378,0.54863959,95362.0,95361.0,2.11420656]
[1733218387609,0.55163959,95362.0,95361.0,2.11420656]
[1733218388616,0.75163959,95362.0,95361.0,2.11420656]
[1733218388852,0.74363959,95362.0,95361.0,2.11420656]
[1733218389068,0.80033959,95362.0,95361.0,2.11420656]
[1733218389755,0.81845267,95362.0,95361.0,2.11420656]
[1733218389970,0.82345267,95362.0,95361.0,2.11420656]
[1733218390204,0.81445267,95362.0,95361.0,2.11420656]
[1733218390430,0.80945267,95362.0,95361.0,2.11420656]
[1733218390651,0.81845267,95362.0,95361.0,2.11420656]
[1733218390864,0.82345267,95362.0,95361.0,2.11420656]
[1733218391083,0.83245267,95362.0,95361.0,2.11420656]
[1733218391313,0.82745267,95362.0,95361.0,2.11420656]
[1733218391769,0.83245267,95362.0,95361.0,2.11420656]
[1733218392934,0.70855267,95362.0,95361.0,2.11420656]
[1733218396715,0.55855267,95362.0,95361.0,2.11420656]
[1733218396929,0.45384008,95362.0,95361.0,2.11420656]
[1733218397836,0.432727,95362.0,95361.0,2.11420656]
[1733218399203,0.023,95362.0,95361.0,2.18950656]
[1733218400147,0.018,95362.0,95361.0,2.18950656]
[1733218400410,0.001,95362.0,95361.0,2.18950656]
[1733218400877,0.419446,95364.0,95361.0,2.18950656]
[1733218402189,0.419446,95364.0,95361.0,2.19050656]
[1733218402444,0.419446,95364.0,95361.0,2.11520656]
[1733218402700,0.2,95362.0,95361.0,2.11420656]
[1733218403442,0.3065038,95362.0,95361.0,2.11420656]
[1733218404103,0.3085038,95362.0,95361.0,2.11420656]
[1733218404559,0.3145038,95362.0,95361.0,2.11420656]
[1733218405216,0.3125038,95362.0,95361.0,2.11420656]
[1733218405677,0.3155038,95362.0,95361.0,2.11420656]
[1733218406117,0.31371259,95362.0,95361.0,2.11420656]
[1733218406575,0.009,95362.0,95361.0,2.11420656]
[1733218407024,0.009,95362.0,95361.0,2.19740656]
[1733218414363,0.009,95362.0,95361.0,2.11420656]
[1733218417659,0.009,95362.0,95361.0,2.19120656]
[1733218421293,0.009,95362.0,95361.0,2.89120656]
[1733218422828,0.218727,95362.0,95361.0,2.89120656]
[1733218424403,0.218727,95362.0,95361.0,2.19120656]
[1733218427983,0.218727,95362.0,95361.0,2.89120656]
[1733218433232,0.009,95362.0,95361.0,2.89120656]
[1733218444450,0.009,95362.0,95361.0,2.19120656]
[1733218446647,0.009,95362.0,95361.0,2.40093556]
[1733218447311,0.009,95362.0,95361.0,2.6366662]
[1733218447942,0.009,95362.0,95361.0,2.64926066]
[1733218448148,0.009,95362.0,95361.0,3.11353002]
[1733218449219,0.00845368,95362.0,95361.0,3.11353002]
[1733218449425,0.0017264,95370.0,95361.0,3.11353002]
[1733218449633,0.0017264,95370.0,95363.0,0.209724]
[1733218449870,0.0017264,95370.0,95364.0,0.01259446]
[1733218450049,0.0017264,95370.0,95363.0,0.7]
[1733218450504,0.0017264,95370.0,95364.0,0.209722]
[1733218450940,0.0017264,95370.0,95364.0,1.09839781]
[1733218451144,0.0087264,95370.0,95365.0,0.18867581]
[1733218451358,0.0087264,95370.0,95366.0,0.65756572]
[1733218451589,0.0017264,95370.0,95368.0,0.44544364]
[1733218451791,0.0017264,95370.0,95369.0,0.078]
[1733218452001,0.0037264,95370.0,95369.0,0.18456836]
[1733218452463,0.0037264,95370.0,95369.0,0.43216836]
[1733218452464,0.0067264,95370.0,95369.0,0.43216836]
[1733218452673,0.0037264,95370.0,95369.0,0.43031259]
[1733218452893,0.0037264,95370.0,95369.0,1.28031259]
[1733218453118,0.0087264,95370.0,95369.0,1.31306766]
[1733218453326,0.0087264,95370.0,95369.0,1.38314405]
[1733218454005,0.0067264,95370.0,95369.0,1.38314405]
[1733218454240,0.0067264,95370.0,95369.0,1.38714405]
[1733218454455,0.0017264,95370.0,95369.0,1.38714405]
[1733218454667,0.0027264,95370.0,95369.0,1.38614405]
[1733218455115,0.0037264,95370.0,95369.0,1.39014405]
[1733218456883,0.0037264,95370.0,95369.0,1.28731259]
[1733218457842,0.0037264,95370.0,95369.0,0.93731259]
[1733218458496,0.0037264,95370.0,95369.0,1.1255921]
[1733218458745,0.0037264,95370.0,95369.0,0.8326]
[1733218459020,0.0037264,95370.0,95369.0,0.785]
[1733218459501,0.0037264,95370.0,95369.0,0.707]
[1733218460012,0.0027264,95370.0,95369.0,0.003]
[1733218460484,0.0027264,95370.0,95369.0,0.004]
[1733218460485,0.0017264,95370.0,95369.0,0.004]
[1733218460917,0.2124354,95370.0,95369.0,0.003]
[1733218461128,0.2124354,95370.0,95369.0,0.006]
[1733218461358,0.2124354,95370.0,95369.0,0.009]
[1733218461583,0.2114354,95370.0,95361.0,2.11420656]
[1733218461798,0.209719,95366.0,95361.0,2.11420656]
[1733218462229,0.2114354,95370.0,95361.0,2.11420656]
[1733218462890,0.2114354,95370.0,95361.0,2.32393356]
[1733218462891,0.0017264,95370.0,95361.0,2.32393356]
[1733218463096,0.0017264,95370.0,95361.0,2.11420656]
[1733218463518,0.0017264,95370.0,95369.0,0.001]
[1733218463956,0.0017264,95370.0,95361.0,2.11420656]
[1733218464170,0.0017264,95370.0,95362.0,0.209727]
[1733218464611,0.0017264,95370.0,95361.0,2.11620656]
[1733218464777,0.0017264,95370.0,95369.0,0.003]
[1733218464993,0.0017264,95370.0,95369.0,0.005]
[1733218465210,0.0017264,95370.0,95369.0,0.002]
[1733218466206,0.209711,95369.0,95361.0,2.11420656]
[1733218466729,0.209711,95369.0,95362.0,0.003]
[1733218467061,0.0017264,95370.0,95361.0,2.11420656]
[1733218467299,0.0017264,95370.0,95369.0,0.001]
[1733218467521,0.0017264,95370.0,95361.0,2.11620656]
[1733218467754,0.0017264,95370.0,95361.0,2.11820656]
[1733218468010,0.0017264,95370.0,95361.0,2.11620656]
[1733218468253,0.0017264,95370.0,95361.0,2.11520656]
[1733218468471,0.0017264,95370.0,95361.0,2.32593356]
[1733218469567,0.0017264,95370.0,95361.0,2.32493356]
[1733218469792,0.0017264,95370.0,95361.0,2.32593356]
[1733218470014,0.0017264,95370.0,95361.0,2.32793356]
[1733218470237,0.0017264,95370.0,95361.0,2.32393356]
[1733218470651,0.0017264,95370.0,95361.0,2.32793356]
[1733218471534,0.0017264,95370.0,95361.0,2.11820656]
[1733218471776,0.0017264,95370.0,95362.0,0.209727]
[1733218473047,0.0017264,95370.0,95362.0,0.211727]
[1733218473261,0.0017264,95370.0,95363.0,0.209724]
[1733218473477,0.0017264,95370.0,95364.0,0.0772]
[1733218473690,0.0017264,95370.0,95367.0,0.209715]
[1733218474002,0.0017264,95370.0,95366.0,0.21157181]
[1733218476307,0.0017264,95370.0,95366.0,0.21357181]
[1733218476782,0.0017264,95370.0,95366.0,0.21557181]
[1733218479351,0.0017264,95370.0,95366.0,0.00585581]
[1733218479589,0.0017264,95370.0,95367.0,0.209715]
[1733218480828,0.0017264,95370.0,95367.0,0.421431]
[1733218481069,0.0017264,95370.0,95367.0,0.423431]
[1733218483190,0.0017264,95370.0,95369.0,0.290511]
[1733218484192,0.0017264,95370.0,95369.0,0.0808]
[1733218484396,0.0017264,95370.0,95369.0,0.209711]
[1733218485409,0.0017264,95370.0,95369.0,0.211711]
[1733218486118,0.0017264,95370.0,95369.0,0.213711]
[1733218487467,0.0017264,95370.0,95369.0,0.004]
[1733218487715,0.01151943,95370.0,95369.0,0.004]
[1733218488785,0.0017264,95370.0,95369.0,0.004]
[1733218489651,0.0017264,95370.0,95369.0,0.27234777]
[1733218489865,0.0017264,95370.0,95369.0,0.31904777]
[1733218490074,0.0017264,95370.0,95369.0,1.01904777]
[1733218490288,0.0017264,95370.0,95369.0,1.36904777]
[1733218490501,0.00979303,95389.0,95388.0,0.209669]
[1733218490717,0.00981297,95400.0,95388.0,0.0813]
[1733218490924,0.00981297,95399.0,95388.0,0.1022669]
[1733218491217,0.00981297,95398.0,95393.0,0.209658]
[1733218491397,0.00981297,95397.0,95393.0,0.209658]
[1733218491614,0.00981297,95396.0,95389.0,0.209667]
[1733218491833,0.00981297,95400.0,95391.0,0.209663]
[1733218492054,0.00981297,95399.0,95391.0,0.209663]
[1733218492317,0.0017258,95401.0,95391.0,0.209663]
[1733218492318,0.00981297,95398.0,95392.0,0.7]
[1733218492577,0.0017258,95401.0,95393.0,0.10283146]
[1733218492578,0.01153877,95401.0,95393.0,0.10283146]
[1733218492798,0.002,95396.0,95393.0,0.10283146]
[1733218493299,0.01153877,95401.0,95393.0,0.7]
[1733218493534,0.003,95398.0,95393.0,0.7]
[1733218493778,0.009,95398.0,95393.0,0.7]
[1733218494224,0.005,95396.0,95393.0,0.701]
[1733218494456,0.003,95398.0,95393.0,0.7]
[1733218494940,0.01581297,95398.0,95393.0,0.701]
[1733218495191,0.006,95398.0,95393.0,0.910658]
[1733218495428,0.006,95398.0,95395.0,0.209654]
[1733218495644,0.002,95396.0,95395.0,0.7]
[1733218496071,0.0017258,95401.0,95395.0,0.7]
[1733218496262,0.005,95396.0,95395.0,0.7]
[1733218496943,0.01,95396.0,95395.0,0.701]
[1733218497165,0.219652,95396.0,95395.0,0.701]
[1733218497483,0.23119137,95396.0,95395.0,0.701]
[1733218498727,0.30959137,95396.0,95395.0,0.701]
[1733218499298,0.31159137,95396.0,95395.0,0.701]
[1733218500002,0.31159137,95396.0,95395.0,0.001]
[1733218500856,0.51159137,95396.0,95395.0,0.001]
[1733218501059,0.55849137,95396.0,95395.0,0.001]
[1733218501490,0.66320396,95396.0,95395.0,0.001]
[1733218502354,0.66120396,95396.0,95395.0,0.001]
[1733218502578,0.66420396,95396.0,95395.0,0.001]